bitfinex/quotes_BTCUSD_20250519
["timestamp","ask_amount","ask_price","bid_price","bid_amount"]
[1747664048216,0.47036585,103450.0,103440.0,0.59092747]
[1747664048574,0.47703179,103450.0,103440.0,0.59092747]
[1747664048933,0.48003179,103450.0,103440.0,0.59092747]
[1747664049337,0.48969782,103450.0,103440.0,0.59092747]
[1747664049566,0.47036566,103450.0,103440.0,0.62342747]
[1747664049774,0.4607,103450.0,103440.0,0.62342747]
[1747664049977,0.23194,103450.0,103440.0,0.62342747]
[1747664050395,0.23194,103450.0,103440.0,0.62946747]
[1747664050905,0.22994,103450.0,103440.0,0.62342747]
[1747664051109,0.22894,103450.0,103440.0,0.62342747]
[1747664051520,0.22994,103450.0,103440.0,0.62342747]
[1747664051956,0.0011,103450.0,103440.0,0.62342747]
[1747664055271,0.0011,103450.0,103440.0,0.2868498]
[1747664055466,0.0011,103450.0,103440.0,0.62342747]
[1747664057878,0.0011,103450.0,103440.0,0.59092747]
[1747664060084,0.01076566,103450.0,103440.0,0.55892747]
[1747664060290,0.0011,103450.0,103440.0,0.2223498]
[1747664060594,0.0011,103450.0,103440.0,0.55892747]
[1747664060804,0.0011,103450.0,103440.0,0.59022747]
[1747664062234,0.0011,103450.0,103440.0,0.55892747]
[1747664063432,0.0011,103450.0,103440.0,0.59052747]
[1747664063635,0.01076575,103450.0,103440.0,0.55892747]
[1747664063799,0.01076575,103450.0,103440.0,0.4209925]
[1747664063996,0.23729577,103450.0,103440.0,0.21268302]
[1747664064200,0.06220081,103440.0,103430.0,0.22237149]
[1747664064473,0.09270343,103430.0,103420.0,0.21272377]
[1747664064677,0.05253534,103430.0,103420.0,0.42103559]
[1747664065107,0.04286753,103430.0,103420.0,0.42103559]
[1747664065283,0.35933366,103440.0,103430.0,0.22237149]
[1747664065528,0.00966669,103440.0,103430.0,0.42301419]
[1747664065736,1.07294209,103450.0,103440.0,0.21268302]
[1747664065937,1.18958421,103450.0,103440.0,0.21268302]
[1747664066140,0.45738,103450.0,103440.0,0.525071]
[1747664066351,0.0001,103450.0,103440.0,0.555771]
[1747664066551,0.0001,103450.0,103440.0,0.588871]
[1747664067181,0.0001,103450.0,103440.0,0.8915922]
[1747664067315,0.0001,103450.0,103440.0,0.588871]
[1747664067724,0.0001,103450.0,103440.0,0.555771]
[1747664069930,0.0001,103450.0,103440.0,1.3272016]
[1747664070141,0.0001,103450.0,103440.0,1.33324106]
[1747664070323,0.0001,103450.0,103440.0,1.33988339]
[1747664070677,0.0001,103450.0,103440.0,1.34297532]
[1747664071095,0.0001,103450.0,103440.0,1.34497532]
[1747664071296,0.0001,103450.0,103440.0,1.34897532]
[1747664071495,0.0001,103450.0,103440.0,1.34697532]
[1747664072068,0.0001,103450.0,103440.0,1.58037532]
[1747664072213,0.0001,103450.0,103440.0,1.58360973]
[1747664074550,0.0001,103450.0,103440.0,1.81200973]
[1747664074723,1.02714202,103490.0,103480.0,0.22226402]
[1747664074974,0.64572432,103490.0,103480.0,0.52498522]
[1747664075175,0.64572432,103490.0,103480.0,0.22226402]
[1747664075374,0.6553868,103490.0,103480.0,0.22226402]
[1747664075645,0.65538671,103490.0,103480.0,0.22226402]
[1747664075863,0.6573868,103490.0,103480.0,0.22226402]
[1747664076059,0.6573868,103490.0,103480.0,0.22274488]
[1747664076416,0.64772432,103490.0,103480.0,0.22274488]
[1747664077013,0.64972432,103490.0,103480.0,0.22274488]
[1747664077584,0.6593868,103490.0,103480.0,0.22274488]
[1747664079525,0.30006202,103490.0,103480.0,0.22274488]
[1747664079654,0.329049,103490.0,103480.0,0.22274488]
[1747664080085,0.33871158,103490.0,103480.0,0.22274488]
[1747664080348,0.329049,103490.0,103480.0,0.22274488]
[1747664080974,0.33871158,103490.0,103480.0,0.22274488]
[1747664082209,0.329049,103490.0,103480.0,0.22274488]
[1747664082415,0.33871158,103490.0,103480.0,0.23240811]
[1747664082574,0.33871167,103490.0,103480.0,0.22274498]
[1747664082771,0.53196705,103490.0,103480.0,0.22274498]
[1747664082983,0.52230503,103490.0,103480.0,0.21308184]
[1747664083183,0.53196779,103490.0,103480.0,0.22274507]
[1747664083620,0.52230568,103490.0,103480.0,0.22274507]
[1747664083822,0.52230568,103490.0,103480.0,0.23240821]
[1747664085345,0.52230568,103490.0,103480.0,0.22274507]
[1747664086123,0.60029021,103490.0,103480.0,0.20341862]
[1747664086298,0.60029021,103490.0,103480.0,0.22274573]
[1747664086803,0.60029021,103490.0,103480.0,0.23240896]
[1747664087015,0.60029021,103490.0,103480.0,0.2420721]
[1747664087460,0.40703446,103490.0,103480.0,0.24207144]
[1747664087586,0.258,103490.0,103480.0,0.24207144]
[1747664087808,0.26766211,103490.0,103480.0,0.54479264]
[1747664088033,0.2773245,103490.0,103480.0,0.54479264]
[1747664088397,0.3079245,103490.0,103480.0,0.54479264]
[1747664088614,0.51084246,103490.0,103480.0,0.24207144]
[1747664088836,0.53016789,103490.0,103480.0,0.2324084]
[1747664089057,0.52050578,103490.0,103480.0,0.22274526]
[1747664089877,0.31758764,103490.0,103480.0,0.2324084]
[1747664090116,0.30792497,103490.0,103480.0,0.24207144]
[1747664090815,0.01366192,103490.0,103480.0,0.54479264]
[1747664091121,0.03298642,103490.0,103480.0,0.54479264]
[1747664091318,0.06598642,103490.0,103480.0,0.54479264]
[1747664091598,0.05632403,103490.0,103480.0,0.54479264]
[1747664091828,0.06598642,103490.0,103480.0,0.54479264]
[1747664092210,0.075649,103490.0,103480.0,0.54479264]
[1747664092554,0.075649,103490.0,103480.0,0.24207144]
[1747664092952,0.06598642,103490.0,103480.0,0.24207144]
[1747664093411,0.0756489,103490.0,103480.0,0.24207144]
[1747664093630,0.06598642,103490.0,103480.0,0.24207144]
[1747664093838,0.09918642,103490.0,103480.0,0.24207144]
[1747664096218,0.1088489,103490.0,103480.0,0.24207144]
[1747664096429,0.11851148,103490.0,103480.0,0.24207144]
[1747664096902,0.1088489,103490.0,103480.0,0.24207144]
[1747664097227,0.11851148,103490.0,103480.0,0.24207144]
[1747664097533,0.31176761,103490.0,103480.0,0.24207144]
[1747664097736,0.29244311,103490.0,103480.0,0.20341852]
[1747664097935,0.29244311,103490.0,103480.0,0.22274526]
[1747664098150,0.29244311,103490.0,103480.0,0.22274535]
[1747664098572,0.29244311,103490.0,103480.0,0.24207172]
[1747664098781,0.29244311,103490.0,103480.0,0.24207116]
[1747664098955,0.29244311,103490.0,103480.0,0.22274498]
[1747664099163,0.38009003,103490.0,103480.0,0.19375492]
[1747664099370,0.38009003,103490.0,103480.0,0.20341862]
[1747664099911,0.38009003,103490.0,103480.0,0.21308222]
[1747664100463,1.05916576,103490.0,103480.0,0.00048086]
[1747664100676,1.0276895,103490.0,103480.0,0.00048086]
[1747664100887,0.7249683,103490.0,103480.0,0.00048086]
[1747664101338,0.51717179,103490.0,103480.0,0.21308222]
[1747664101546,0.4413094,103490.0,103480.0,0.23240858]
[1747664101731,0.5910844,103490.0,103480.0,0.23240858]
[1747664102071,0.61040918,103490.0,103480.0,0.23240858]
[1747664102275,0.64220918,103490.0,103480.0,0.23240858]
[1747664102685,0.26074624,103490.0,103480.0,0.23240858]
[1747664103117,0.02332394,103490.0,103480.0,0.53512978]
[1747664103413,0.004,103490.0,103480.0,0.60172978]
[1747664103945,0.004,103490.0,103480.0,0.60776772]
[1747664104154,0.004,103490.0,103480.0,0.61085904]
[1747664104314,0.002,103490.0,103480.0,0.61085904]
[1747664104514,0.002,103490.0,103480.0,0.61752361]
[1747664105063,0.52732545,103500.0,103490.0,0.22224255]
[1747664105261,0.02898372,103500.0,103490.0,0.52496375]
[1747664105464,0.9167,103510.0,103500.0,0.22222109]
[1747664105667,1.16370021,103510.0,103500.0,0.52494229]
[1747664105867,1.17336055,103510.0,103500.0,0.52494229]
[1747664106273,0.69856006,103510.0,103500.0,0.52494229]
[1747664106477,0.7082203,103510.0,103500.0,0.52494229]
[1747664106651,0.71788064,103510.0,103500.0,0.55664229]
[1747664106874,0.71788064,103510.0,103500.0,0.52494229]
[1747664106875,0.73720187,103510.0,103500.0,0.52494229]
[1747664107439,0.72754116,103510.0,103500.0,0.52494229]
[1747664107846,0.73720187,103510.0,103500.0,0.52494229]
[1747664108171,0.71788064,103510.0,103500.0,0.52494229]
[1747664108376,0.02898064,103510.0,103500.0,0.52494229]
[1747664108541,0.0193203,103510.0,103500.0,0.58734229]
[1747664108777,0.0193204,103510.0,103500.0,0.58734229]
[1747664108980,0.0193203,103510.0,103500.0,0.58734229]
[1747664109319,0.89091845,103530.0,103520.0,0.21251902]
[1747664109476,0.08101694,103530.0,103520.0,0.53455912]
[1747664109694,0.7897165,103530.0,103520.0,0.21251902]
[1747664109914,0.8203165,103530.0,103520.0,0.21251902]
[1747664110334,0.8243165,103530.0,103520.0,0.21251902]
[1747664110544,0.8243165,103530.0,103520.0,0.21299988]
[1747664110754,0.8520165,103530.0,103520.0,0.2033402]
[1747664110963,0.84235812,103530.0,103520.0,0.00048086]
[1747664111279,0.84435812,103530.0,103520.0,0.2033402]
[1747664111471,0.84435812,103530.0,103520.0,0.21300007]
[1747664111673,0.84635812,103530.0,103520.0,0.21300007]
[1747664112033,0.004,103530.0,103520.0,0.59764017]
[1747664112878,0.002,103530.0,103520.0,0.59764017]
[1747664113282,0.01931471,103540.0,103530.0,0.2221567]
[1747664113859,0.02897234,103540.0,103530.0,0.2221567]
[1747664114060,1.35824014,103550.0,103540.0,0.22213524]
[1747664114268,0.94530954,103550.0,103540.0,0.22213524]
[1747664114494,0.72752596,103550.0,103540.0,0.22213524]
[1747664114698,0.71786926,103550.0,103540.0,0.22213524]
[1747664114900,0.6889,103550.0,103540.0,0.22213524]
[1747664115111,0.004,103550.0,103540.0,0.52485644]
[1747664115347,0.004,103550.0,103540.0,0.22213524]
[1747664116004,0.01365651,103550.0,103540.0,0.22213524]
[1747664116231,0.02731293,103550.0,103540.0,0.22213524]
[1747664116461,0.01365642,103550.0,103540.0,0.22213524]
[1747664116663,0.00965642,103550.0,103540.0,0.22213524]
[1747664116866,0.01165642,103550.0,103540.0,0.22213524]
[1747664116989,0.004,103550.0,103540.0,0.22213524]
[1747664117388,0.01365642,103550.0,103540.0,0.22213524]
[1747664118530,0.004,103550.0,103540.0,0.22213524]
[1747664118958,0.02331284,103550.0,103540.0,0.22213524]
[1747664119179,0.01365633,103550.0,103540.0,0.22213524]
[1747664119595,0.02331294,103550.0,103540.0,0.22213524]
[1747664119798,0.01365633,103550.0,103540.0,0.22213524]
[1747664120703,0.02331275,103550.0,103540.0,0.22213524]
[1747664121786,0.004,103550.0,103540.0,0.22213524]
[1747664122274,0.004,103550.0,103540.0,0.52485644]
[1747664122472,0.004,103550.0,103540.0,0.58735644]
[1747664125786,0.004,103550.0,103540.0,0.5968798]
[1747664126205,0.004,103550.0,103540.0,0.6941892]
[1747664126411,0.002,103550.0,103540.0,0.6941892]
[1747664126626,0.56468989,103580.0,103570.0,0.2220709]
[1747664126833,0.76530501,103580.0,103570.0,0.2220709]
[1747664127043,0.98269092,103580.0,103570.0,0.2220709]
[1747664127404,0.9923451,103580.0,103570.0,0.2220709]
[1747664127838,0.9923451,103580.0,103570.0,0.22255176]
[1747664128408,0.7646651,103580.0,103570.0,0.22255176]
[1747664129235,0.00965362,103580.0,103570.0,0.22255176]
[1747664129439,0.87651912,103590.0,103580.0,0.20274183]
[1747664129610,0.97382852,103590.0,103580.0,0.20274183]
[1747664130322,0.97382852,103590.0,103580.0,0.21239611]
[1747664130528,0.96417546,103590.0,103580.0,0.21239611]
[1747664130727,0.95452212,103590.0,103580.0,0.22205029]
[1747664131345,0.95652212,103590.0,103580.0,0.22205029]
[1747664131615,0.0632,103580.0,103570.0,0.2225511]
[1747664132671,0.07285418,103580.0,103570.0,0.2225511]
[1747664133790,0.08250827,103580.0,103570.0,0.2225511]
[1747664134897,0.09216217,103580.0,103570.0,0.2225511]
[1747664135851,0.10181598,103580.0,103570.0,0.2225511]
[1747664136901,0.3381897,103580.0,103570.0,0.2225511]
[1747664137102,0.3381497,103580.0,103570.0,0.2225511]
[1747664138028,0.11147026,103580.0,103570.0,0.2225511]
[1747664138209,0.11147026,103580.0,103570.0,0.00048086]
[1747664138210,1.18100617,103580.0,103570.0,0.00048086]
[1747664140183,1.48372737,103580.0,103570.0,0.00048086]
[1747664141423,1.48572737,103580.0,103570.0,0.00048086]
[1747664142347,1.18300617,103580.0,103570.0,0.00048086]
[1747664142566,1.48572737,103580.0,103570.0,0.00048086]
[1747664142796,1.48772737,103580.0,103570.0,0.00048086]
[1747664143136,1.63363677,103580.0,103570.0,0.00048086]
[1747664144234,1.33091557,103580.0,103570.0,0.00048086]
[1747664144511,1.53632737,103580.0,103570.0,0.00048086]
[1747664144746,0.78004617,103580.0,103570.0,0.00048086]
[1747664144963,1.23336617,103580.0,103570.0,0.00048086]
[1747664145908,1.53608737,103580.0,103570.0,0.00048086]
[1747664149525,0.78004617,103580.0,103570.0,0.00048086]
[1747664149726,0.78004617,103580.0,103570.0,0.21289729]
[1747664149727,0.3378833,103580.0,103570.0,0.21289729]
[1747664149929,0.49585579,103580.0,103570.0,0.28575212]
[1747664150134,0.50551007,103580.0,103570.0,0.29540686]
[1747664150383,0.69859828,103580.0,103570.0,0.29540686]
[1747664150592,0.50151082,103580.0,103570.0,0.30506151]
[1747664150772,0.48220217,103580.0,103570.0,0.30506151]
[1747664150964,0.48220217,103580.0,103570.0,0.3081504]
[1747664151145,0.68494391,103580.0,103570.0,0.3081504]
[1747664151350,0.49185645,103580.0,103570.0,0.3081504]
[1747664152112,0.03861645,103580.0,103570.0,0.3081504]
[1747664152283,0.26481645,103580.0,103570.0,0.3081504]
[1747664153249,0.03861645,103580.0,103570.0,0.3081504]
[1747664153448,0.00965362,103580.0,103570.0,0.3081504]
[1747664153602,0.24546752,103580.0,103570.0,0.3081504]
[1747664154682,0.01930743,103580.0,103570.0,0.3081504]
[1747664154888,0.25508143,103580.0,103570.0,0.3081504]
[1747664155435,0.23577362,103580.0,103570.0,0.3081504]
[1747664155593,0.25508134,103580.0,103570.0,0.3081504]
[1747664156028,0.26473543,103580.0,103570.0,0.3081504]
[1747664156398,0.00971795,103590.0,103570.0,0.3081504]
[1747664156649,0.0146929,103600.0,103590.0,0.285828]
[1747664157067,0.59499425,103610.0,103600.0,0.2220065]
[1747664157280,0.24534212,103610.0,103600.0,0.2220065]
[1747664157551,0.25499351,103610.0,103600.0,0.2220065]
[1747664157875,0.59499351,103610.0,103600.0,0.21235455]
[1747664158075,0.79767664,103610.0,103600.0,0.21235455]
[1747664158223,0.78802572,103610.0,103600.0,0.21235455]
[1747664158429,0.7975284,103610.0,103600.0,0.21235455]
[1747664158641,0.35930212,103610.0,103600.0,0.2220064]
[1747664158846,0.82183351,103610.0,103600.0,0.2220064]
[1747664159148,0.82183351,103610.0,103600.0,0.2545064]
[1747664159374,0.83148499,103610.0,103600.0,0.2545064]
[1747664159610,1.03416812,103610.0,103600.0,0.2545064]
[1747664159791,0.83048499,103610.0,103600.0,0.2545064]
[1747664160401,1.02351655,103610.0,103600.0,0.2545064]
[1747664160583,1.03316812,103610.0,103600.0,0.2545064]
[1747664161059,1.3165872,103610.0,103600.0,0.19305019]
[1747664161268,1.30693581,103610.0,103600.0,0.2027026]
[1747664161485,1.30693581,103610.0,103600.0,0.22200696]
[1747664161653,1.08089581,103610.0,103600.0,0.24131076]
[1747664161932,0.81106259,103610.0,103600.0,0.30271076]
[1747664162338,1.02339664,103610.0,103600.0,0.30271076]
[1747664163398,1.02339664,103610.0,103600.0,0.28340696]
[1747664163399,1.32611784,103610.0,103600.0,0.28340696]
[1747664163648,1.02327664,103610.0,103600.0,0.261759]
[1747664163845,0.57163664,103610.0,103600.0,0.261759]
[1747664164123,1.02327664,103610.0,103600.0,0.261759]
[1747664164777,1.02333664,103610.0,103600.0,0.261759]
[1747664165725,1.01368572,103610.0,103600.0,0.261759]
[1747664166072,1.30675572,103610.0,103600.0,0.2027026]
[1747664166480,1.30675572,103610.0,103600.0,0.21235473]
[1747664166893,1.00403452,103610.0,103600.0,0.21235473]
[1747664167177,1.02568313,103610.0,103600.0,0.0096525]
[1747664167392,0.21235492,103600.0,103590.0,0.27527523]
[1747664167600,0.51507612,103600.0,103590.0,0.20272188]
[1747664168035,0.23525195,103600.0,103590.0,0.21237522]
[1747664168243,0.25455566,103600.0,103590.0,0.285628]
[1747664168460,0.26420789,103600.0,103590.0,0.285628]
[1747664168674,0.77831406,103610.0,103600.0,0.21235473]
[1747664168878,0.78796554,103610.0,103600.0,0.21235473]
[1747664169081,1.01356554,103610.0,103600.0,0.22200677]
[1747664169325,1.02321711,103610.0,103600.0,0.22200677]
[1747664169534,0.35940194,103610.0,103600.0,0.22200677]
[1747664169746,1.02317636,103610.0,103600.0,0.25410677]
[1747664169923,1.01352553,103610.0,103600.0,0.25410677]
[1747664170133,1.01352553,103610.0,103600.0,0.21235473]
[1747664170332,1.00387442,103610.0,103600.0,0.21235473]
[1747664172586,0.56598,103610.0,103600.0,0.22200658]
[1747664172741,0.8106825,103610.0,103600.0,0.28460658]
[1747664172947,0.81068212,103610.0,103600.0,0.28460658]
[1747664173149,1.02301664,103610.0,103600.0,0.27495473]
[1747664173356,1.03266793,103610.0,103600.0,0.29425872]
[1747664173766,0.83963628,103610.0,103600.0,0.29425872]
[1747664173923,0.83963628,103610.0,103600.0,0.30391057]
[1747664174128,1.03266784,103610.0,103600.0,0.29425872]
[1747664174363,1.02301683,103610.0,103600.0,0.29425872]
[1747664174603,1.01336572,103610.0,103600.0,0.21235473]
[1747664174786,0.56208572,103610.0,103600.0,0.21235473]
[1747664174981,0.78740572,103610.0,103600.0,0.28310668]
[1747664175196,0.0154828,103620.0,103610.0,0.30012601]
[1747664175431,0.0154828,103620.0,103610.0,0.76298894]
[1747664175610,0.005,103630.0,103620.0,0.28556374]
[1747664175760,0.005,103630.0,103620.0,0.38287314]
[1747664175957,0.94012038,103650.0,103640.0,0.19297568]
[1747664176160,0.94012038,103650.0,103630.0,0.22194232]
[1747664176161,0.02894493,103640.0,103630.0,0.20264392]
[1747664176363,0.02894419,103640.0,103630.0,0.22242318]
[1747664176563,0.01929607,103640.0,103630.0,0.22242318]
[1747664177191,0.96339486,103650.0,103640.0,0.21227258]
[1747664177475,1.19828187,103650.0,103640.0,0.21227258]
[1747664177677,1.20792972,103650.0,103640.0,0.21227268]
[1747664177919,1.19824187,103650.0,103640.0,0.21227268]
[1747664178130,1.20788963,103650.0,103640.0,0.22192099]
[1747664178336,1.13526714,103650.0,103640.0,0.23156912]
[1747664178569,1.13526714,103650.0,103640.0,0.29426912]
[1747664178762,0.91006714,103650.0,103640.0,0.29426912]
[1747664178944,1.14487415,103650.0,103640.0,0.29426912]
[1747664179342,1.15452144,103650.0,103640.0,0.29426912]
[1747664179563,1.16416892,103650.0,103640.0,0.24257268]
[1747664179720,1.16416892,103650.0,103640.0,0.22192099]
[1747664179721,1.15452144,103650.0,103640.0,0.22192099]
[1747664179924,1.15452135,103650.0,103640.0,0.23156912]
[1747664180322,1.15452135,103650.0,103640.0,0.20262427]
[1747664180671,1.14487415,103650.0,103640.0,0.22192081]
[1747664180962,1.16416845,103650.0,103640.0,0.22192099]
[1747664181142,0.72277574,103650.0,103640.0,0.23156912]
[1747664181350,0.72277611,103650.0,103640.0,0.2219209]
[1747664181556,0.71312873,103650.0,103640.0,0.23156903]
[1747664181875,0.77512873,103650.0,103640.0,0.23156903]
[1747664182086,0.765482,103650.0,103640.0,0.20262427]
[1747664182341,0.71312966,103650.0,103640.0,0.21227287]
[1747664182531,0.68418714,103650.0,103640.0,0.23156941]
[1747664182739,0.68418714,103650.0,103640.0,0.29226941]
[1747664183107,0.34418714,103650.0,103640.0,0.29226941]
[1747664183795,0.35383424,103650.0,103640.0,0.29226941]
[1747664184135,0.34418714,103650.0,103640.0,0.29226941]
[1747664184900,0.34418714,103650.0,103640.0,0.67236379]
[1747664185883,0.34418714,103650.0,103640.0,0.36964259]
[1747664186093,0.34418714,103650.0,103640.0,0.76967319]
[1747664186302,0.34418714,103650.0,103640.0,1.07539439]
[1747664186509,0.34418714,103650.0,103640.0,0.77875942]
[1747664187120,0.34418714,103650.0,103640.0,0.7847869]
[1747664187450,0.34418714,103650.0,103640.0,0.81087228]
[1747664187831,0.33818714,103650.0,103640.0,0.7847869]
[1747664189603,0.33818714,103650.0,103640.0,0.70741372]
[1747664191861,0.33818714,103650.0,103640.0,0.70138624]
[1747664192652,0.33818714,103650.0,103640.0,0.70741388]
[1747664193705,0.33818714,103650.0,103640.0,1.04741388]
[1747664193933,0.33818714,103650.0,103640.0,1.35013508]
[1747664194700,6e-05,103660.0,103650.0,0.2218995]
[1747664194912,6e-05,103660.0,103650.0,0.9881513]
[1747664195114,6e-05,103660.0,103650.0,1.3281513]
[1747664195313,0.0121824,103680.0,103670.0,0.28535668]
[1747664195509,0.0121824,103680.0,103670.0,0.68538728]
[1747664196300,0.0121824,103680.0,103670.0,0.62188728]
[1747664196489,0.0121824,103680.0,103670.0,0.62236814]
[1747664196691,0.0121824,103680.0,103670.0,0.68536814]
[1747664196916,0.0121824,103680.0,103670.0,0.65526814]
[1747664197137,0.0121824,103680.0,103670.0,0.62236814]
[1747664197307,0.0121824,103680.0,103670.0,0.62545358]
[1747664197592,0.0121824,103680.0,103670.0,0.62845358]
[1747664197845,0.0121824,103680.0,103670.0,0.32573238]
[1747664198096,0.0121824,103680.0,103670.0,0.32773238]
[1747664198610,0.0121824,103680.0,103670.0,0.62736814]
[1747664198881,0.0121824,103680.0,103670.0,0.62536814]
[1747664199121,0.0121824,103680.0,103670.0,0.68886814]
[1747664200580,0.0121824,103680.0,103670.0,0.69086814]
[1747664201143,0.0121824,103680.0,103670.0,0.38814694]
[1747664201362,0.0121824,103680.0,103670.0,0.69395355]
[1747664201702,0.0121824,103680.0,103670.0,0.35813235]
[1747664201907,0.0121824,103680.0,103670.0,0.32573235]
[1747664203070,0.0061824,103680.0,103670.0,0.32573235]
[1747664203948,0.0061824,103680.0,103670.0,0.33175865]
[1747664205729,0.0061824,103680.0,103670.0,0.39355865]
[1747664206159,0.0061824,103680.0,103670.0,0.36265865]
[1747664206345,0.0061824,103680.0,103670.0,0.33175865]
[1747664206928,0.0061824,103680.0,103670.0,0.3349863]
[1747664207428,0.0061824,103680.0,103670.0,0.3957863]
[1747664208554,0.0061824,103680.0,103670.0,0.74236188]
[1747664209678,0.0061824,103680.0,103670.0,0.74343649]
[1747664210852,0.0001824,103680.0,103670.0,1.19199649]
[1747664211078,0.0002824,103680.0,103670.0,1.19199649]
[1747664211699,0.0002824,103680.0,103670.0,1.21353734]
[1747664212134,0.00041044,103690.0,103680.0,0.58637613]
[1747664212343,0.00041044,103690.0,103680.0,0.75511183]
[1747664212787,0.00041044,103690.0,103680.0,0.76168741]
[1747664212993,0.00041044,103690.0,103680.0,0.77588375]
[1747664213223,0.00041044,103690.0,103680.0,0.85325693]
[1747664213459,0.00041044,103690.0,103680.0,0.77588375]
[1747664213687,0.00041044,103690.0,103680.0,0.77896916]
[1747664214341,0.00041044,103690.0,103680.0,0.78196916]
[1747664214544,0.00041044,103690.0,103680.0,0.78396916]
[1747664215199,0.00041044,103690.0,103680.0,0.76942831]
[1747664215413,0.00051044,103690.0,103680.0,0.76942831]
[1747664215629,0.00051044,103690.0,103680.0,0.75942831]
[1747664216023,0.00051044,103690.0,103680.0,0.76942831]
[1747664216272,0.00051044,103690.0,103680.0,0.78396916]
[1747664216693,0.00051044,103690.0,103680.0,1.23516916]
[1747664217243,0.00051044,103690.0,103680.0,1.22516916]
[1747664217445,0.00051044,103690.0,103680.0,1.23516916]
[1747664218583,0.10230102,103720.0,103710.0,0.22177111]
[1747664218786,0.1119418,103720.0,103710.0,0.31908051]
[1747664218995,0.07337924,103720.0,103710.0,0.31908051]
[1747664219199,0.08301974,103720.0,103710.0,0.31908051]
[1747664219476,0.10230158,103720.0,103710.0,0.32216592]
[1747664219809,0.09266043,103720.0,103710.0,0.32264678]
[1747664220193,0.30676948,103720.0,103710.0,0.31300516]
[1747664220367,0.30676948,103720.0,103710.0,0.21569576]
[1747664220608,0.11394255,103720.0,103710.0,0.22533738]
[1747664221161,0.09666043,103720.0,103710.0,0.22533738]
[1747664221364,0.07737924,103720.0,103710.0,0.22533738]
[1747664221572,0.04707924,103720.0,103710.0,0.22533738]
[1747664221777,0.04707924,103720.0,103710.0,0.32264678]
[1747664222158,0.01587924,103720.0,103710.0,0.32264678]
[1747664222424,0.01587924,103720.0,103710.0,0.32867095]
[1747664222790,0.01597924,103720.0,103710.0,0.32867095]
[1747664224060,0.01597924,103720.0,103710.0,0.38947095]
[1747664224275,0.01597924,103720.0,103710.0,0.39266601]
[1747664224476,0.01597924,103720.0,103710.0,0.39923475]
[1747664225110,0.01197924,103720.0,103710.0,0.39923475]
[1747664225327,0.01197924,103720.0,103710.0,0.2897625]
[1747664225498,0.01197924,103720.0,103710.0,0.21238932]
[1747664226286,0.00597924,103720.0,103710.0,0.21238932]
[1747664226707,0.00597924,103720.0,103710.0,0.21345517]
[1747664227323,0.00597924,103720.0,103710.0,0.16211954]
[1747664227536,0.00597924,103720.0,103710.0,0.16452946]
[1747664227737,0.00597924,103720.0,103710.0,0.19271954]
[1747664227949,0.00597924,103720.0,103710.0,0.16211954]
[1747664228719,0.00597924,103720.0,103710.0,0.13319386]
[1747664230096,0.00597924,103720.0,103710.0,0.12613939]
[1747664230097,0.07087924,103720.0,103710.0,0.12613939]
[1747664230275,0.07087924,103720.0,103710.0,0.12372949]
[1747664230477,0.07087924,103720.0,103710.0,0.11716075]
[1747664230860,0.07087924,103720.0,103710.0,0.11876467]
[1747664231974,0.07087924,103720.0,103710.0,0.11769604]
[1747664234029,0.03217924,103720.0,103710.0,0.11769604]
[1747664234239,0.04710499,103730.0,103710.0,0.11769604]
[1747664234381,0.0332,103720.0,103710.0,0.11769604]
[1747664235212,0.0332,103720.0,103710.0,0.11169604]
[1747664235428,0.04710499,103730.0,103710.0,0.11469604]
[1747664235621,0.04710499,103730.0,103720.0,0.00241003]
[1747664236019,0.04710499,103730.0,103710.0,0.11469604]
[1747664236247,0.04710499,103730.0,103720.0,0.00241003]
[1747664236441,0.01390499,103730.0,103720.0,0.00241003]
[1747664236639,0.04710499,103730.0,103710.0,0.11167187]
[1747664236803,0.0001,103720.0,103710.0,0.10858646]
[1747664237006,0.0309,103720.0,103710.0,0.10858646]
[1747664237204,0.0309,103720.0,103710.0,0.11516993]
[1747664237458,0.0309,103720.0,103710.0,0.11819328]
[1747664237694,0.0636,103720.0,103710.0,0.11819328]
[1747664237898,0.0636,103720.0,103710.0,0.12060343]
[1747664238108,0.0636,103720.0,103710.0,0.12368747]
[1747664238270,0.0304,103720.0,103710.0,0.12368747]
[1747664238890,0.0614,103720.0,103710.0,0.12368747]
[1747664239902,0.04490499,103730.0,103710.0,0.12668747]
[1747664240104,0.04490499,103730.0,103720.0,0.00231006]
[1747664240301,0.04490499,103730.0,103720.0,0.0053941]
[1747664240680,0.07700499,103730.0,103720.0,0.0053941]
[1747664240973,0.07700499,103730.0,103720.0,0.01141745]
[1747664241221,0.04600499,103730.0,103720.0,0.10972685]
[1747664241486,0.30128112,103770.0,103750.0,0.01]
[1747664241625,0.85491052,103770.0,103750.0,0.01]
[1747664241825,0.86461494,103770.0,103750.0,0.01]
[1747664242029,0.334,103760.0,103750.0,0.01]
[1747664242633,0.334,103760.0,103750.0,0.01048086]
[1747664243691,0.331,103760.0,103750.0,0.01048086]
[1747664243813,0.334,103760.0,103750.0,0.01048086]
[1747664244024,0.003,103760.0,103750.0,0.01048086]
[1747664244542,0.0674,103760.0,103750.0,0.01048086]
[1747664244890,0.0675,103760.0,103750.0,0.01048086]
[1747664245135,0.0695,103760.0,103750.0,0.01048086]
[1747664246916,0.30086,103760.0,103750.0,0.01048086]
[1747664248024,0.0695,103760.0,103750.0,0.01048086]
[1747664249313,0.3023,103760.0,103750.0,0.01048086]
[1747664250637,0.0695,103760.0,103750.0,0.01048086]
[1747664253384,0.2622525,103760.0,103750.0,0.20325194]
[1747664253854,0.2622525,103760.0,103750.0,0.01048086]
[1747664253995,0.79853362,103760.0,103750.0,0.01048086]
[1747664254226,1.23584302,103760.0,103750.0,0.01048086]
[1747664254424,1.25038387,103760.0,103750.0,0.00048086]
[1747664257747,0.94910275,103760.0,103750.0,0.00048086]
[1747664257962,1.25038387,103760.0,103750.0,0.00048086]
[1747664260686,1.09840167,103760.0,103750.0,0.00048086]
[1747664261300,1.79320167,103760.0,103750.0,0.00048086]
[1747664263368,1.55820167,103760.0,103750.0,0.00048086]
[1747664263562,1.79472167,103760.0,103750.0,0.00048086]
[1747664263721,1.85812167,103760.0,103750.0,0.00048086]
[1747664263919,1.32032055,103760.0,103750.0,0.00048086]
[1747664264137,1.79052055,103760.0,103750.0,0.00048086]
[1747664264341,1.79052055,103760.0,103750.0,0.00038086]
[1747664264662,1.79062055,103760.0,103750.0,0.00038086]
[1747664265065,2.09190167,103760.0,103750.0,0.00038086]
[1747664266364,1.79062055,103760.0,103750.0,0.00038086]
[1747664266590,1.32042055,103760.0,103750.0,0.00038086]
[1747664266766,1.75942055,103760.0,103750.0,0.00038086]
[1747664267165,0.59422055,103760.0,103750.0,0.00038086]
[1747664267372,0.5476797,103760.0,103750.0,0.19315194]
[1747664267580,0.37864918,103760.0,103750.0,0.29526628]
[1747664267756,0.57140168,103760.0,103750.0,0.28562838]
[1747664268970,0.57140168,103760.0,103750.0,0.29526637]